[Event "Titled Tuesday Blitz June 27 Early 2023"]
[White "Rodchenkov, Sergey D."]
[Black "Melikhov, Evgeny V."]
[WhiteFideId "4168712"]
[BlackFideId "4122046"]
[WhiteElo "2550"]
[BlackElo "2365"]
[Result "1-0"]
[Round "4"]
[TimeControl "180+2"]
[Date "2023.06.27"]
[WhiteClock "0:00:21"]
[BlackClock "0:00:08"]
[Board "156"]

1. e4 {[%clk 0:03:00]}  e5 {[%clk 0:02:59]} 2. Nf3 {[%clk 0:03:01]}  Nc6 {[%clk 0:02:59]} 3. Bc4 {[%clk 0:03:01]}  Nf6 {[%clk 0:02:59]} 4. Ng5 {[%clk 0:03:02]}  d5 {[%clk 0:02:58]} 5. exd5 {[%clk 0:03:03]}  Na5 {[%clk 0:02:58]} 6. Bb5+ {[%clk 0:03:03]}  c6 {[%clk 0:02:58]} 7. dxc6 {[%clk 0:03:04]}  bxc6 {[%clk 0:02:58]} 8. Bd3 {[%clk 0:03:00]}  Ng4 {[%clk 0:02:57]} 9. Ne4 {[%clk 0:02:46]}  f5 {[%clk 0:02:46]} 10. Be2 {[%clk 0:02:44]}  fxe4 {[%clk 0:01:49]} 11. Bxg4 {[%clk 0:02:41]}  Qh4 {[%clk 0:01:40]} 12. Bxc8 {[%clk 0:02:18]}  Rxc8 {[%clk 0:01:36]} 13. Nc3 {[%clk 0:02:17]}  Bc5 {[%clk 0:01:35]} 14. Qe2 {[%clk 0:02:16]}  O-O {[%clk 0:01:30]} 15. Nxe4 {[%clk 0:02:14]}  Bb6 {[%clk 0:00:57]} 16. d3 {[%clk 0:02:12]}  Nb7 {[%clk 0:00:46]} 17. Be3 {[%clk 0:02:03]}  Qe7 {[%clk 0:00:31]} 18. O-O-O {[%clk 0:02:00]}  Qb4 {[%clk 0:00:28]} 19. a3 {[%clk 0:01:45]}  Qa5 {[%clk 0:00:26]} 20. d4 {[%clk 0:01:43]}  Rb8 {[%clk 0:00:23]} 21. dxe5 {[%clk 0:01:22]}  Qxe5 {[%clk 0:00:21]} 22. Bxb6 {[%clk 0:01:15]}  axb6 {[%clk 0:00:20]} 23. Rhe1 {[%clk 0:01:16]}  c5 {[%clk 0:00:18]} 24. g3 {[%clk 0:01:13]}  Rbe8 {[%clk 0:00:15]} 25. f4 {[%clk 0:01:12]}  Qe6 {[%clk 0:00:14]} 26. Qg2 {[%clk 0:01:11]}  Qc4 {[%clk 0:00:12]} 27. Nd2 {[%clk 0:01:09]}  Qa6 {[%clk 0:00:11]} 28. Qd5+ {[%clk 0:01:06]}  Kh8 {[%clk 0:00:11]} 29. Ne4 {[%clk 0:01:02]}  Na5 {[%clk 0:00:10]} 30. Ng5 {[%clk 0:01:00]}  h6 {[%clk 0:00:09]} 31. Nf7+ {[%clk 0:00:52]}  Kh7 {[%clk 0:00:09]} 32. Ne5 {[%clk 0:00:37]}  b5 {[%clk 0:00:08]} 33. Qe4+ {[%clk 0:00:35]}  Kh8 {[%clk 0:00:07]} 34. Ng6+ {[%clk 0:00:29]}  Kg8 {[%clk 0:00:07]} 35. Qd5+ {[%clk 0:00:26]}  Kh7 {[%clk 0:00:07]} 36. Nxf8+ {[%clk 0:00:26]}  Rxf8 {[%clk 0:00:07]} 37. Re6 {[%clk 0:00:26]}  Qa7 {[%clk 0:00:07]} 38. Qe4+ {[%clk 0:00:25]}  Kh8 {[%clk 0:00:07]} 39. Re8 {[%clk 0:00:22]}  Rxe8 {[%clk 0:00:07]} 40. Qxe8+ {[%clk 0:00:23]}  Kh7 {[%clk 0:00:07]} 41. Qe4+ {[%clk 0:00:24]}  Kg8 {[%clk 0:00:07]} 42. Rd8+ {[%clk 0:00:23]}  Kf7 {[%clk 0:00:08]} 43. Qf5+ {[%clk 0:00:19]}  Ke7 {[%clk 0:00:08]} 44. Qf8+ {[%clk 0:00:20]}  Ke6 {[%clk 0:00:08]} 45. Rd6# {[%clk 0:00:21]} 1-0


[Site "https://www.chess.com"]

[Event "Titled Tuesday Blitz June 27 Early 2023"]
[White "a-z30"]
[Black "Arat, Ufuk Sezen"]
[BlackFideId "6309089"]
[WhiteElo "2356"]
[BlackElo "2547"]
[Result "0-1"]
[Round "4"]
[TimeControl "180+2"]
[Date "2023.06.27"]
[WhiteClock "0:00:02"]
[BlackClock "0:00:13"]
[Board "157"]

1. d3 {[%clk 0:03:00]}  d5 {[%clk 0:03:00]} 2. Nf3 {[%clk 0:03:01]}  Nf6 {[%clk 0:03:00]} 3. g3 {[%clk 0:03:02]}  g6 {[%clk 0:03:00]} 4. Bg2 {[%clk 0:03:02]}  Bg7 {[%clk 0:03:01]} 5. O-O {[%clk 0:03:03]}  O-O {[%clk 0:03:01]} 6. c4 {[%clk 0:03:04]}  c6 {[%clk 0:03:02]} 7. Nc3 {[%clk 0:03:02]}  Bg4 {[%clk 0:03:02]} 8. cxd5 {[%clk 0:03:01]}  cxd5 {[%clk 0:03:02]} 9. Bf4 {[%clk 0:03:00]}  Nc6 {[%clk 0:03:00]} 10. Ne5 {[%clk 0:03:00]}  Nxe5 {[%clk 0:02:55]} 11. Bxe5 {[%clk 0:02:59]}  Be6 {[%clk 0:02:56]} 12. Qa4 {[%clk 0:02:58]}  Qb6 {[%clk 0:02:35]} 13. Qd4 {[%clk 0:02:47]}  Qxd4 {[%clk 0:02:33]} 14. Bxd4 {[%clk 0:02:47]}  Rfd8 {[%clk 0:02:32]} 15. Nb5 {[%clk 0:02:41]}  Ne8 {[%clk 0:02:27]} 16. Rac1 {[%clk 0:02:05]}  a6 {[%clk 0:02:02]} 17. Bxg7 {[%clk 0:01:54]}  axb5 {[%clk 0:02:02]} 18. Bd4 {[%clk 0:01:50]}  Rxa2 {[%clk 0:02:02]} 19. Rc5 {[%clk 0:01:48]}  Ra4 {[%clk 0:01:38]} 20. e3 {[%clk 0:01:38]}  b4 {[%clk 0:01:17]} 21. Rfc1 {[%clk 0:01:26]}  Nd6 {[%clk 0:00:53]} 22. Bxd5 {[%clk 0:01:07]}  b6 {[%clk 0:00:50]} 23. Bxe6 {[%clk 0:00:51]}  bxc5 {[%clk 0:00:49]} 24. Bb3 {[%clk 0:00:52]}  Ra5 {[%clk 0:00:40]} 25. Rxc5 {[%clk 0:00:51]}  Rxc5 {[%clk 0:00:38]} 26. Bxc5 {[%clk 0:00:52]}  Rc8 {[%clk 0:00:30]} 27. Bxb4 {[%clk 0:00:44]}  Rb8 {[%clk 0:00:29]} 28. Bxd6 {[%clk 0:00:44]}  exd6 {[%clk 0:00:29]} 29. Bc4 {[%clk 0:00:40]}  Rxb2 {[%clk 0:00:30]} 30. h4 {[%clk 0:00:35]}  Kg7 {[%clk 0:00:31]} 31. Kg2 {[%clk 0:00:34]}  f5 {[%clk 0:00:31]} 32. Kf3 {[%clk 0:00:29]}  Kf6 {[%clk 0:00:32]} 33. Kg2 {[%clk 0:00:23]}  Rc2 {[%clk 0:00:31]} 34. Kf3 {[%clk 0:00:21]}  Ke5 {[%clk 0:00:31]} 35. Bg8 {[%clk 0:00:17]}  h6 {[%clk 0:00:27]} 36. Bc4 {[%clk 0:00:17]}  d5 {[%clk 0:00:25]} 37. d4+ {[%clk 0:00:14]}  Ke6 {[%clk 0:00:25]} 38. Bb5 {[%clk 0:00:15]}  Rb2 {[%clk 0:00:25]} 39. Bc6 {[%clk 0:00:14]}  g5 {[%clk 0:00:25]} 40. hxg5 {[%clk 0:00:14]}  hxg5 {[%clk 0:00:25]} 41. Be8 {[%clk 0:00:14]}  Ra2 {[%clk 0:00:17]} 42. Bb5 {[%clk 0:00:12]}  Ra5 {[%clk 0:00:17]} 43. Bd3 {[%clk 0:00:12]}  Kf6 {[%clk 0:00:17]} 44. Bc2 {[%clk 0:00:12]}  Ra2 {[%clk 0:00:16]} 45. Bb3 {[%clk 0:00:11]}  Ra5 {[%clk 0:00:15]} 46. Bc2 {[%clk 0:00:12]}  Ra6 {[%clk 0:00:12]} 47. Bd3 {[%clk 0:00:12]}  Rd6 {[%clk 0:00:12]} 48. Bb5 {[%clk 0:00:12]}  Ke6 {[%clk 0:00:12]} 49. Ba4 {[%clk 0:00:12]}  Rd8 {[%clk 0:00:13]} 50. Bc2 {[%clk 0:00:12]}  Rh8 {[%clk 0:00:12]} 51. Kg2 {[%clk 0:00:11]}  Kf6 {[%clk 0:00:12]} 52. Bd3 {[%clk 0:00:10]}  Rg8 {[%clk 0:00:10]} 53. Bb5 {[%clk 0:00:10]}  Rh8 {[%clk 0:00:10]} 54. Bc6 {[%clk 0:00:09]}  Ke6 {[%clk 0:00:10]} 55. Bb7 {[%clk 0:00:10]}  Rh7 {[%clk 0:00:10]} 56. Ba6 {[%clk 0:00:10]}  Rg7 {[%clk 0:00:10]} 57. Bd3 {[%clk 0:00:11]}  f4 {[%clk 0:00:09]} 58. gxf4 {[%clk 0:00:10]}  gxf4+ {[%clk 0:00:10]} 59. Kf3 {[%clk 0:00:11]}  fxe3 {[%clk 0:00:10]} 60. fxe3 {[%clk 0:00:10]}  Ra7 {[%clk 0:00:11]} 61. e4 {[%clk 0:00:09]}  Ra3 {[%clk 0:00:11]} 62. Ke3 {[%clk 0:00:09]}  Kd6 {[%clk 0:00:10]} 63. exd5 {[%clk 0:00:06]}  Kxd5 {[%clk 0:00:11]} 64. Kd2 {[%clk 0:00:07]}  Kxd4 {[%clk 0:00:12]} 65. Bc2 {[%clk 0:00:07]}  Ra2 {[%clk 0:00:12]} 66. Kc1 {[%clk 0:00:06]}  Kc3 {[%clk 0:00:13]} 67. Bb1 {[%clk 0:00:03]}  Ra1 {[%clk 0:00:13]} 68. Kd1 {[%clk 0:00:02]}  Rxb1+ {[%clk 0:00:13]} 69. Ke2 {[%clk 0:00:02]}  Kd4 {[%clk 0:00:13]} 0-1


[Site "https://www.chess.com"]

[Event "Titled Tuesday Blitz June 27 Early 2023"]
[White "Belov, Alexei"]
[Black "Sovetbekova, Nurai"]
[WhiteFideId "4128206"]
[BlackFideId "13801910"]
[WhiteElo "2544"]
[BlackElo "2354"]
[Result "1-0"]
[Round "4"]
[TimeControl "180+2"]
[Date "2023.06.27"]
[WhiteClock "0:00:04"]
[BlackClock "0:00:00"]
[Board "158"]

1. e4 {[%clk 0:03:00]}  c5 {[%clk 0:02:59]} 2. Nf3 {[%clk 0:02:59]}  Nc6 {[%clk 0:02:59]} 3. d4 {[%clk 0:03:00]}  cxd4 {[%clk 0:03:00]} 4. Nxd4 {[%clk 0:03:00]}  Nf6 {[%clk 0:03:01]} 5. Nc3 {[%clk 0:03:00]}  e5 {[%clk 0:03:01]} 6. Ndb5 {[%clk 0:03:01]}  d6 {[%clk 0:03:02]} 7. Bg5 {[%clk 0:03:00]}  a6 {[%clk 0:03:02]} 8. Na3 {[%clk 0:03:01]}  b5 {[%clk 0:03:03]} 9. Nd5 {[%clk 0:03:01]}  Be7 {[%clk 0:03:03]} 10. Bxf6 {[%clk 0:03:02]}  Bxf6 {[%clk 0:03:04]} 11. c3 {[%clk 0:03:03]}  Bg5 {[%clk 0:03:01]} 12. Nc2 {[%clk 0:03:03]}  Rb8 {[%clk 0:03:01]} 13. a4 {[%clk 0:03:01]}  bxa4 {[%clk 0:03:00]} 14. Ncb4 {[%clk 0:03:02]}  Bd7 {[%clk 0:02:33]} 15. Bxa6 {[%clk 0:02:48]}  Nxb4 {[%clk 0:02:29]} 16. Nxb4 {[%clk 0:02:48]}  O-O {[%clk 0:02:26]} 17. Bc4 {[%clk 0:02:23]}  Qf6 {[%clk 0:02:10]} 18. O-O {[%clk 0:02:17]}  Kh8 {[%clk 0:02:08]} 19. Bd3 {[%clk 0:02:09]}  Qg6 {[%clk 0:02:00]} 20. Bc2 {[%clk 0:02:07]}  Bd8 {[%clk 0:01:50]} 21. f3 {[%clk 0:01:58]}  Bb6+ {[%clk 0:01:43]} 22. Kh1 {[%clk 0:01:58]}  Bc5 {[%clk 0:01:42]} 23. Bxa4 {[%clk 0:01:58]}  Bxb4 {[%clk 0:01:37]} 24. Bxd7 {[%clk 0:01:52]}  Bc5 {[%clk 0:01:27]} 25. b4 {[%clk 0:01:52]}  Bb6 {[%clk 0:01:27]} 26. Ra6 {[%clk 0:01:46]}  Rfd8 {[%clk 0:01:25]} 27. Ba4 {[%clk 0:01:37]}  f5 {[%clk 0:01:20]} 28. exf5 {[%clk 0:01:35]}  Qxf5 {[%clk 0:01:17]} 29. Bc2 {[%clk 0:01:33]}  Qh5 {[%clk 0:01:10]} 30. Qd5 {[%clk 0:01:30]}  Qh6 {[%clk 0:00:47]} 31. Rfa1 {[%clk 0:01:13]}  Qe3 {[%clk 0:00:42]} 32. Bd3 {[%clk 0:00:57]}  Rbc8 {[%clk 0:00:25]} 33. R6a3 {[%clk 0:00:26]}  Rxc3 {[%clk 0:00:16]} 34. Rxc3 {[%clk 0:00:24]}  Bd4 {[%clk 0:00:16]} 35. Rcc1 {[%clk 0:00:20]}  Bxa1 {[%clk 0:00:14]} 36. Rxa1 {[%clk 0:00:19]}  Rc8 {[%clk 0:00:14]} 37. Bf1 {[%clk 0:00:10]}  h6 {[%clk 0:00:12]} 38. Qd3 {[%clk 0:00:10]}  Qb6 {[%clk 0:00:12]} 39. b5 {[%clk 0:00:10]}  Rc5 {[%clk 0:00:11]} 40. Rd1 {[%clk 0:00:10]}  d5 {[%clk 0:00:10]} 41. Qf5 {[%clk 0:00:11]}  d4 {[%clk 0:00:10]} 42. Bd3 {[%clk 0:00:10]}  Kg8 {[%clk 0:00:09]} 43. h3 {[%clk 0:00:10]}  Rc3 {[%clk 0:00:08]} 44. Re1 {[%clk 0:00:09]}  Qc7 {[%clk 0:00:05]} 45. Be4 {[%clk 0:00:08]}  Re3 {[%clk 0:00:05]} 46. Bd5+ {[%clk 0:00:06]}  Kh8 {[%clk 0:00:04]} 47. Qf8+ {[%clk 0:00:06]}  Kh7 {[%clk 0:00:05]} 48. Be4+ {[%clk 0:00:06]}  g6 {[%clk 0:00:05]} 49. Rd1 {[%clk 0:00:02]}  d3 {[%clk 0:00:04]} 50. Qe8 {[%clk 0:00:03]}  d2 {[%clk 0:00:01]} 51. Qxg6+ {[%clk 0:00:02]}  Kh8 {[%clk 0:00:01]} 52. Qf6+ {[%clk 0:00:03]}  Kg8 {[%clk 0:00:01]} 53. Qg6+ {[%clk 0:00:02]}  Kh8 {[%clk 0:00:01]} 54. Rxd2 {[%clk 0:00:02]}  Re1+ {[%clk 0:00:01]} 55. Kh2 {[%clk 0:00:03]}  Re3 {[%clk 0:00:00]} 56. Qxh6+ {[%clk 0:00:04]} 1-0


[Site "https://www.chess.com"]

[Event "Titled Tuesday Blitz June 27 Early 2023"]
[White "Mamedov, Edgar"]
[Black "Nithyalakshmi, Sivanesan"]
[WhiteFideId "13739980"]
[BlackFideId "5706955"]
[WhiteElo "2543"]
[BlackElo "2351"]
[Result "1-0"]
[Round "4"]
[TimeControl "180+2"]
[Date "2023.06.27"]
[WhiteClock "0:02:08"]
[BlackClock "0:01:26"]
[Board "159"]

1. d4 {[%clk 0:03:00]}  Nf6 {[%clk 0:02:59]} 2. Bg5 {[%clk 0:02:59]}  Ne4 {[%clk 0:02:58]} 3. Bf4 {[%clk 0:02:58]}  c5 {[%clk 0:02:57]} 4. d5 {[%clk 0:02:55]}  d6 {[%clk 0:02:55]} 5. f3 {[%clk 0:02:54]}  Qa5+ {[%clk 0:02:53]} 6. c3 {[%clk 0:02:53]}  Nf6 {[%clk 0:02:52]} 7. e4 {[%clk 0:02:52]}  b5 {[%clk 0:02:41]} 8. Nd2 {[%clk 0:02:45]}  a6 {[%clk 0:02:39]} 9. a4 {[%clk 0:02:42]}  b4 {[%clk 0:02:32]} 10. Nc4 {[%clk 0:02:41]}  Qc7 {[%clk 0:02:31]} 11. cxb4 {[%clk 0:02:40]}  cxb4 {[%clk 0:02:30]} 12. a5 {[%clk 0:02:40]}  Nbd7 {[%clk 0:02:21]} 13. Be3 {[%clk 0:02:37]}  Nc5 {[%clk 0:02:20]} 14. Nb6 {[%clk 0:02:30]}  Rb8 {[%clk 0:02:18]} 15. Bxc5 {[%clk 0:02:22]}  Qxc5 {[%clk 0:02:15]} 16. Rc1 {[%clk 0:02:19]}  Qe3+ {[%clk 0:01:52]} 17. Ne2 {[%clk 0:02:16]}  Bd7 {[%clk 0:01:46]} 18. Qd4 {[%clk 0:02:14]}  Qxd4 {[%clk 0:01:43]} 19. Nxd4 {[%clk 0:02:15]}  g6 {[%clk 0:01:32]} 20. Bxa6 {[%clk 0:02:12]}  Bg7 {[%clk 0:01:30]} 21. Nc6 {[%clk 0:02:11]}  Rd8 {[%clk 0:01:27]} 22. Nxd8 {[%clk 0:02:10]}  Kxd8 {[%clk 0:01:26]} 23. Nxd7 {[%clk 0:02:09]}  Nxd7 {[%clk 0:01:26]} 24. Rc8# {[%clk 0:02:08]} 1-0


[Site "https://www.chess.com"]

[Event "Titled Tuesday Blitz June 27 Early 2023"]
[White "Ankerst, Mihael"]
[Black "kuanysh1981"]
[WhiteFideId "14602369"]
[WhiteElo "2349"]
[BlackElo "2534"]
[Result "0-1"]
[Round "4"]
[TimeControl "180+2"]
[Date "2023.06.27"]
[WhiteClock "0:00:00"]
[BlackClock "0:00:15"]
[Board "163"]

1. e4 {[%clk 0:02:53]}  c5 {[%clk 0:02:59]} 2. Nf3 {[%clk 0:02:53]}  e6 {[%clk 0:02:59]} 3. d4 {[%clk 0:02:54]}  cxd4 {[%clk 0:02:59]} 4. Nxd4 {[%clk 0:02:54]}  a6 {[%clk 0:03:00]} 5. c4 {[%clk 0:02:54]}  Qc7 {[%clk 0:03:00]} 6. Nc3 {[%clk 0:02:55]}  Nf6 {[%clk 0:03:01]} 7. Be2 {[%clk 0:02:55]}  Nc6 {[%clk 0:02:57]} 8. O-O {[%clk 0:02:55]}  Nxd4 {[%clk 0:02:57]} 9. Qxd4 {[%clk 0:02:55]}  Bc5 {[%clk 0:02:58]} 10. Qd3 {[%clk 0:02:55]}  h5 {[%clk 0:02:57]} 11. Be3 {[%clk 0:02:54]}  Ng4 {[%clk 0:02:57]} 12. Bxg4 {[%clk 0:02:51]}  hxg4 {[%clk 0:02:57]} 13. g3 {[%clk 0:02:51]}  d6 {[%clk 0:02:48]} 14. Bd4 {[%clk 0:02:50]}  f6 {[%clk 0:01:55]} 15. a3 {[%clk 0:02:38]}  Bd7 {[%clk 0:01:51]} 16. b4 {[%clk 0:02:38]}  Bxd4 {[%clk 0:01:51]} 17. Qxd4 {[%clk 0:02:36]}  Rc8 {[%clk 0:01:46]} 18. Rac1 {[%clk 0:02:35]}  Ke7 {[%clk 0:01:24]} 19. Rfd1 {[%clk 0:02:32]}  Be8 {[%clk 0:01:14]} 20. Ne2 {[%clk 0:01:58]}  Bf7 {[%clk 0:01:02]} 21. Nf4 {[%clk 0:01:54]}  g5 {[%clk 0:01:01]} 22. c5 {[%clk 0:01:44]}  dxc5 {[%clk 0:00:45]} 23. Rxc5 {[%clk 0:01:43]}  Qd8 {[%clk 0:00:43]} 24. Rxc8 {[%clk 0:00:54]}  Qxd4 {[%clk 0:00:43]} 25. Rc7+ {[%clk 0:00:54]}  Kd8 {[%clk 0:00:43]} 26. Rxd4+ {[%clk 0:00:45]}  Kxc7 {[%clk 0:00:43]} 27. Ng2 {[%clk 0:00:36]}  e5 {[%clk 0:00:28]} 28. Rd1 {[%clk 0:00:34]}  Rd8 {[%clk 0:00:23]} 29. Rxd8 {[%clk 0:00:32]}  Kxd8 {[%clk 0:00:24]} 30. Ne3 {[%clk 0:00:33]}  Be6 {[%clk 0:00:24]} 31. Kf1 {[%clk 0:00:30]}  Kc7 {[%clk 0:00:24]} 32. Ke1 {[%clk 0:00:31]}  Kc6 {[%clk 0:00:24]} 33. Kd2 {[%clk 0:00:31]}  b6 {[%clk 0:00:21]} 34. Kc3 {[%clk 0:00:31]}  a5 {[%clk 0:00:21]} 35. bxa5 {[%clk 0:00:28]}  bxa5 {[%clk 0:00:22]} 36. Kb2 {[%clk 0:00:25]}  Kc5 {[%clk 0:00:22]} 37. Kc3 {[%clk 0:00:25]}  Bd7 {[%clk 0:00:20]} 38. Nd5 {[%clk 0:00:19]}  f5 {[%clk 0:00:20]} 39. Nf6 {[%clk 0:00:09]}  Be6 {[%clk 0:00:20]} 40. exf5 {[%clk 0:00:06]}  Bxf5 {[%clk 0:00:20]} 41. Ne8 {[%clk 0:00:06]}  Kc6 {[%clk 0:00:17]} 42. Ng7 {[%clk 0:00:05]}  Bd7 {[%clk 0:00:16]} 43. Nh5 {[%clk 0:00:05]}  Kd6 {[%clk 0:00:16]} 44. Nf6 {[%clk 0:00:06]}  Bf5 {[%clk 0:00:16]} 45. Kc4 {[%clk 0:00:06]}  Ke6 {[%clk 0:00:16]} 46. Ne8 {[%clk 0:00:06]}  Kd7 {[%clk 0:00:15]} 47. Nf6+ {[%clk 0:00:06]}  Ke6 {[%clk 0:00:16]} 48. Ne8 {[%clk 0:00:07]}  Be4 {[%clk 0:00:14]} 49. Kb5 {[%clk 0:00:07]}  Ke7 {[%clk 0:00:13]} 50. Nc7 {[%clk 0:00:07]}  Kd6 {[%clk 0:00:13]} 51. Na6 {[%clk 0:00:07]}  Bd3+ {[%clk 0:00:08]} 52. Kxa5 {[%clk 0:00:08]}  Kd5 {[%clk 0:00:08]} 53. Nb4+ {[%clk 0:00:08]}  Kd4 {[%clk 0:00:09]} 54. Nxd3 {[%clk 0:00:04]}  Kxd3 {[%clk 0:00:10]} 55. a4 {[%clk 0:00:04]}  e4 {[%clk 0:00:10]} 56. Kb6 {[%clk 0:00:05]}  Ke2 {[%clk 0:00:11]} 57. a5 {[%clk 0:00:05]}  Kxf2 {[%clk 0:00:12]} 58. a6 {[%clk 0:00:06]}  e3 {[%clk 0:00:13]} 59. a7 {[%clk 0:00:06]}  e2 {[%clk 0:00:14]} 60. a8=Q {[%clk 0:00:06]}  e1=Q {[%clk 0:00:15]} 61. Qa2+ {[%clk 0:00:00]}  Qe2 {[%clk 0:00:15]} 0-1


[Site "https://www.chess.com"]

[Event "Titled Tuesday Blitz June 27 Early 2023"]
[White "Turzo, Attila"]
[Black "Ng, Clive"]
[WhiteFideId "704954"]
[BlackFideId "3214869"]
[WhiteElo "2525"]
[BlackElo "2347"]
[Result "1-0"]
[Round "4"]
[TimeControl "180+2"]
[Date "2023.06.27"]
[WhiteClock "0:00:07"]
[BlackClock "0:00:00"]
[Board "165"]

1. d4 {[%clk 0:03:00]}  Nf6 {[%clk 0:02:59]} 2. c4 {[%clk 0:03:01]}  e6 {[%clk 0:02:59]} 3. g3 {[%clk 0:03:01]}  d5 {[%clk 0:02:59]} 4. Bg2 {[%clk 0:03:02]}  Bb4+ {[%clk 0:02:55]} 5. Bd2 {[%clk 0:03:02]}  Be7 {[%clk 0:02:54]} 6. Nf3 {[%clk 0:03:02]}  O-O {[%clk 0:02:51]} 7. O-O {[%clk 0:03:03]}  Nbd7 {[%clk 0:02:42]} 8. Qc2 {[%clk 0:03:00]}  c6 {[%clk 0:02:40]} 9. Rc1 {[%clk 0:02:52]}  b6 {[%clk 0:02:35]} 10. b4 {[%clk 0:02:49]}  Bb7 {[%clk 0:02:34]} 11. a4 {[%clk 0:02:41]}  Rc8 {[%clk 0:02:28]} 12. c5 {[%clk 0:02:40]}  bxc5 {[%clk 0:02:19]} 13. bxc5 {[%clk 0:02:37]}  Ba6 {[%clk 0:02:17]} 14. Bf4 {[%clk 0:02:29]}  Nh5 {[%clk 0:02:16]} 15. Nc3 {[%clk 0:02:22]}  Nxf4 {[%clk 0:02:11]} 16. gxf4 {[%clk 0:02:22]}  Rb8 {[%clk 0:02:04]} 17. Rcb1 {[%clk 0:02:20]}  Qc7 {[%clk 0:02:03]} 18. e3 {[%clk 0:02:08]}  Rxb1+ {[%clk 0:01:55]} 19. Rxb1 {[%clk 0:02:07]}  Rb8 {[%clk 0:01:54]} 20. Bf1 {[%clk 0:01:58]}  Rxb1 {[%clk 0:01:49]} 21. Qxb1 {[%clk 0:01:54]}  Bxf1 {[%clk 0:01:48]} 22. Kxf1 {[%clk 0:01:54]}  Qb8 {[%clk 0:01:36]} 23. Qxb8+ {[%clk 0:01:43]}  Nxb8 {[%clk 0:01:35]} 24. Ne5 {[%clk 0:01:40]}  f6 {[%clk 0:01:33]} 25. Nd3 {[%clk 0:01:37]}  Bd8 {[%clk 0:01:31]} 26. Na2 {[%clk 0:01:16]}  Ba5 {[%clk 0:01:28]} 27. Nac1 {[%clk 0:01:16]}  Kf7 {[%clk 0:01:27]} 28. Nb3 {[%clk 0:01:16]}  Bc7 {[%clk 0:01:26]} 29. a5 {[%clk 0:01:13]}  Na6 {[%clk 0:01:23]} 30. Ke2 {[%clk 0:01:11]}  Ke7 {[%clk 0:01:08]} 31. Kd2 {[%clk 0:01:10]}  Kd7 {[%clk 0:01:02]} 32. Kc3 {[%clk 0:01:10]}  Kc8 {[%clk 0:01:02]} 33. Ne1 {[%clk 0:00:53]}  Bd8 {[%clk 0:00:54]} 34. Nf3 {[%clk 0:00:53]}  Nc7 {[%clk 0:00:54]} 35. Kb4 {[%clk 0:00:52]}  Na6+ {[%clk 0:00:51]} 36. Ka4 {[%clk 0:00:52]}  Nc7 {[%clk 0:00:49]} 37. Nh4 {[%clk 0:00:47]}  Kd7 {[%clk 0:00:47]} 38. f5 {[%clk 0:00:42]}  e5 {[%clk 0:00:43]} 39. Nf3 {[%clk 0:00:36]}  e4 {[%clk 0:00:41]} 40. Nh4 {[%clk 0:00:36]}  Nb5 {[%clk 0:00:31]} 41. Kb4 {[%clk 0:00:35]}  Ke7 {[%clk 0:00:26]} 42. Ng2 {[%clk 0:00:33]}  Kf7 {[%clk 0:00:24]} 43. Nf4 {[%clk 0:00:33]}  Nc7 {[%clk 0:00:22]} 44. Nc1 {[%clk 0:00:22]}  g6 {[%clk 0:00:22]} 45. fxg6+ {[%clk 0:00:18]}  hxg6 {[%clk 0:00:23]} 46. Nce2 {[%clk 0:00:18]}  g5 {[%clk 0:00:23]} 47. Nh5 {[%clk 0:00:15]}  Kg6 {[%clk 0:00:22]} 48. Nhg3 {[%clk 0:00:15]}  f5 {[%clk 0:00:20]} 49. h3 {[%clk 0:00:15]}  Na6+ {[%clk 0:00:16]} 50. Ka4 {[%clk 0:00:16]}  Bc7 {[%clk 0:00:16]} 51. Nf1 {[%clk 0:00:15]}  f4 {[%clk 0:00:15]} 52. Nc3 {[%clk 0:00:14]}  Kf5 {[%clk 0:00:12]} 53. Na2 {[%clk 0:00:12]}  Bd8 {[%clk 0:00:12]} 54. Nh2 {[%clk 0:00:12]}  Nb8 {[%clk 0:00:11]} 55. Ng4 {[%clk 0:00:13]}  Bc7 {[%clk 0:00:11]} 56. Nb4 {[%clk 0:00:12]}  fxe3 {[%clk 0:00:09]} 57. fxe3 {[%clk 0:00:12]}  Bg3 {[%clk 0:00:09]} 58. a6 {[%clk 0:00:12]}  Bc7 {[%clk 0:00:08]} 59. Nh6+ {[%clk 0:00:11]}  Kg6 {[%clk 0:00:08]} 60. Ng4 {[%clk 0:00:11]}  Kf5 {[%clk 0:00:08]} 61. Nh6+ {[%clk 0:00:12]}  Kg6 {[%clk 0:00:09]} 62. Ng4 {[%clk 0:00:12]}  Kh5 {[%clk 0:00:09]} 63. Nf6+ {[%clk 0:00:10]}  Kh4 {[%clk 0:00:09]} 64. Nfxd5 {[%clk 0:00:10]}  cxd5 {[%clk 0:00:08]} 65. Nxd5 {[%clk 0:00:11]}  Bg3 {[%clk 0:00:07]} 66. Nf6 {[%clk 0:00:11]}  Kxh3 {[%clk 0:00:05]} 67. d5 {[%clk 0:00:10]}  g4 {[%clk 0:00:04]} 68. d6 {[%clk 0:00:10]}  Be5 {[%clk 0:00:03]} 69. Nxe4 {[%clk 0:00:10]}  g3 {[%clk 0:00:03]} 70. Nxg3 {[%clk 0:00:09]}  Kxg3 {[%clk 0:00:03]} 71. Kb5 {[%clk 0:00:10]}  Kf3 {[%clk 0:00:03]} 72. Kc4 {[%clk 0:00:10]}  Ke4 {[%clk 0:00:01]} 73. Kb5 {[%clk 0:00:07]}  Kd5 {[%clk 0:00:01]} 74. d7 {[%clk 0:00:07]}  Nxd7 {[%clk 0:00:01]} 75. c6 {[%clk 0:00:07]}  Nb6 {[%clk 0:00:01]} 76. Ka5 {[%clk 0:00:07]}  Bc7 {[%clk 0:00:01]} 77. e4+ {[%clk 0:00:07]}  Kxc6 {[%clk 0:00:02]} 78. e5 {[%clk 0:00:07]}  Kd5 {[%clk 0:00:00]} 79. Kb5 {[%clk 0:00:07]} 1-0


[Site "https://www.chess.com"]